bitfinex/quotes_ETHUSD_20251011
["timestamp","ask_amount","ask_price","bid_price","bid_amount"]
[1760209324312,3.80941983,3820.4,3820.3,0.002]
[1760209332506,3.72618047,3820.4,3820.3,0.002]
[1760209335633,6.27978047,3820.4,3820.3,0.002]
[1760209335838,6.25367816,3820.4,3820.3,0.002]
[1760209336205,6.25367816,3820.4,3818.7,0.1304]
[1760209336206,1.92,3820.3,3817.7,1.31]
[1760209336536,2.61891255,3818.4,3817.7,0.44482516]
[1760209336736,0.49000231,3818.3,3817.3,2.61963449]
[1760209337035,0.49000231,3818.3,3817.0,2.61985852]
[1760209337036,1.1189,3818.2,3817.4,0.00103852]
[1760209337336,2.64523342,3818.1,3816.5,0.0833]
[1760209337537,0.4639,3818.0,3817.3,0.00103852]
[1760209337840,0.02610231,3817.9,3817.3,2.61965249]
[1760209338029,0.72080231,3817.9,3817.3,2.61965249]
[1760209338341,0.72080231,3817.9,3817.2,2.61966352]
[1760209338342,0.4639,3817.8,3817.2,2.61966352]
[1760209338509,0.02610231,3817.7,3817.3,0.00103852]
[1760209338869,0.49000231,3817.7,3816.9,1.92]
[1760209339038,0.49000231,3817.7,3817.1,0.03149249]
[1760209339237,0.49000231,3817.7,3817.0,0.05353839]
[1760209339622,1.92,3817.2,3815.1,0.07110199]
[1760209339819,0.68110231,3817.1,3815.6,0.0833]
[1760209340031,0.655,3817.1,3817.0,2.61985852]
[1760209340208,0.655,3817.1,3817.0,2.88184437]
[1760209340409,0.655,3817.1,3816.2,2.5536]
[1760209340630,0.655,3817.1,3816.9,2.6199073]
[1760209341030,0.655,3817.1,3817.0,2.61985852]
[1760209341236,0.655,3817.1,3815.8,0.6336]
[1760209341237,0.655,3817.1,3815.5,0.6336]
[1760209341537,0.655,3817.1,3817.0,2.61985852]
[1760209342459,0.655,3817.1,3816.6,2.6200793]
[1760209342610,0.4639,3817.0,3816.3,0.014281]
[1760209342816,0.02610231,3816.9,3816.3,2.63461472]
[1760209343016,0.49000231,3816.9,3816.3,2.63461472]
[1760209343211,0.4639,3816.8,3816.3,0.014281]
[1760209343426,0.02610231,3816.7,3816.5,0.002]
[1760209343932,0.77489492,3816.6,3816.5,0.002]
[1760209344316,3.0840331,3816.6,3816.5,0.002]
[1760209344516,0.49000231,3816.6,3816.5,0.002]
[1760209345350,3.11013541,3816.6,3816.5,0.002]
[1760209347853,3.11013541,3816.6,3816.3,0.014281]
[1760209347854,2.62027041,3816.4,3816.3,0.014281]
[1760209348053,2.64637272,3816.4,3816.3,0.014281]
[1760209348244,2.62109456,3815.2,3815.1,0.07110199]
[1760209348551,2.62109456,3815.2,3811.4,5.32805613]
[1760209348552,0.795,3815.2,3813.4,0.0833]
[1760209348752,0.795,3815.2,3813.5,0.0833]
[1760209348753,0.655,3815.2,3813.5,0.0833]
[1760209348968,0.655,3815.2,3814.9,2.62130004]
[1760209349134,0.655,3815.2,3814.1,1.92]
[1760209349135,0.655,3815.2,3814.8,2.62135991]
[1760209349335,0.4618,3815.1,3813.7,0.0333]
[1760209349534,0.48790231,3815.1,3813.2,2.62243485]
[1760209349846,0.48790231,3815.1,3814.4,1.92]
[1760209350045,0.4618,3815.0,3814.2,2.62177138]
[1760209350252,0.655,3815.2,3813.5,2.89283086]
[1760209350253,0.48790231,3814.9,3814.1,1.92]
[1760209350425,0.02610231,3814.9,3814.1,2.62178795]
[1760209350632,0.4618,3814.8,3813.5,0.27056814]
[1760209350932,0.4618,3814.8,3813.6,4.54212672]
[1760209350933,0.02610231,3814.7,3813.6,4.54212672]
[1760209351264,2.62169057,3814.4,3812.3,2.62308842]
[1760209351465,0.2321,3813.7,3813.2,2.62243104]
[1760209351637,0.48790231,3814.3,3813.3,2.64859594]
[1760209351838,0.4618,3814.2,3813.3,0.026224]
[1760209352030,0.02610231,3814.1,3812.3,0.0333]
[1760209352230,0.4618,3814.0,3813.3,2.62237735]
[1760209352456,0.72000231,3813.9,3813.3,2.62237735]
[1760209352662,0.72000231,3813.9,3813.4,2.62229445]
[1760209352861,0.25820231,3813.9,3812.8,1.92]
[1760209353060,1.36286837,3818.3,3799.2,0.071]
[1760209353061,0.4618,3814.5,3813.0,2.62260687]
[1760209353230,0.02610231,3814.4,3812.9,0.48758132]
[1760209353562,0.02610231,3814.4,3813.8,2.62205539]
[1760209354227,0.4618,3814.5,3814.0,2.62188842]
[1760209354427,0.48790231,3814.4,3813.3,1.92]
[1760209354640,0.4618,3814.3,3813.2,2.5536]
[1760209354839,0.4618,3814.3,3813.2,0.30411813]
[1760209355060,0.02610231,3814.2,3813.7,2.62211837]
[1760209355363,0.02610231,3814.2,3813.7,2.62206846]
[1760209355552,0.4618,3814.1,3813.7,2.62206846]
[1760209355858,0.4618,3814.4,3813.0,2.5536]
[1760209356062,0.02610231,3814.6,3813.3,3.25600054]
[1760209356260,0.02610231,3814.6,3813.3,0.6336]
[1760209356461,0.02610231,3814.6,3814.1,2.62184848]
[1760209356636,0.02610231,3814.6,3814.1,2.62179059]
[1760209356844,0.4618,3814.5,3814.2,2.62177177]
[1760209357154,0.4618,3814.4,3814.1,2.6218378]
[1760209357549,0.4618,3814.9,3814.2,2.62174529]
[1760209357765,0.02610231,3814.8,3814.0,2.62187014]
[1760209358069,3.10927528,3814.8,3813.7,2.62208154]
[1760209358280,0.1304,3814.3,3813.7,2.75248154]
[1760209358562,0.4618,3814.2,3814.0,2.62185465]
[1760209358741,0.1304,3814.3,3814.1,2.62184199]
[1760209359341,0.4618,3814.2,3813.8,2.62205674]
[1760209359565,0.4618,3814.1,3813.7,0.1304]
[1760209359727,0.15650231,3814.3,3813.7,0.1304]
[1760209359929,0.15650231,3814.3,3813.7,4.67250583]
[1760209360161,0.61830231,3814.3,3813.8,2.62199064]
[1760209360360,0.4618,3814.2,3813.8,2.62199064]
[1760209360658,0.4618,3814.1,3813.7,0.1304]
[1760209360828,0.4618,3814.0,3813.7,0.1304]
[1760209361033,0.72000231,3813.9,3812.5,0.0333]
[1760209361263,0.1304,3813.7,3813.1,0.1304]
[1760209361466,0.48790231,3813.6,3812.7,2.62276016]
[1760209361672,0.48790231,3813.6,3812.7,0.1304]
[1760209361673,0.1304,3813.4,3812.7,0.1304]
[1760209361965,0.48790231,3813.3,3812.9,1.92]
[1760209362165,0.48790231,3813.3,3813.0,2.62259449]
[1760209362366,0.4618,3813.3,3813.1,2.62252695]
[1760209362537,0.4618,3813.3,3813.0,2.62254183]
[1760209362734,0.4618,3813.3,3813.1,2.62252216]
[1760209362952,0.25820231,3813.9,3812.8,4.54274292]
[1760209362953,0.25820231,3813.9,3813.2,0.02622469]
[1760209363159,0.1304,3813.6,3813.4,0.002]
[1760209363752,0.1304,3813.6,3813.5,2.62226301]
[1760209364243,0.5626,3813.6,3813.4,0.002]
[1760209364442,0.4322,3813.5,3813.4,0.002]
[1760209365569,0.1304,3813.6,3813.4,2.62433177]
[1760209366264,0.1304,3814.0,3813.4,0.1324]
[1760209366665,0.5626,3814.0,3813.4,2.75470317]
[1760209366869,0.2346,3813.9,3813.4,2.75470317]
[1760209367071,0.26070231,3813.9,3813.5,2.62226099]
[1760209367266,0.2346,3813.9,3813.5,2.62226099]
[1760209367473,0.4322,3813.8,3813.5,2.62226099]
[1760209367657,0.4322,3813.8,3813.4,2.75472278]
[1760209368042,0.4322,3813.7,3813.5,2.62224494]
[1760209368242,0.4322,3813.7,3813.6,2.62219425]
[1760209368444,0.1304,3814.2,3814.0,2.62188531]
[1760209368641,0.1304,3814.2,3814.1,2.6218505]
[1760209368893,0.1304,3814.5,3814.3,2.6216999]
[1760209369080,0.1304,3814.8,3814.5,2.62154287]
[1760209369281,0.1304,3814.8,3814.6,2.62150675]
[1760209369878,0.1304,3814.8,3814.1,0.1304]
[1760209370178,0.656,3815.0,3814.9,2.62130068]
[1760209370640,0.656,3815.0,3814.9,2.65460068]
[1760209370844,0.656,3815.0,3814.9,2.78500068]
[1760209371041,0.656,3815.0,3814.9,0.1304]
[1760209371341,1.3497,3815.0,3814.4,0.1304]
[1760209371540,0.7864,3815.0,3814.6,2.62144392]
[1760209371739,0.81250231,3815.0,3814.6,2.62144392]
[1760209371943,0.81250231,3815.0,3814.4,0.1304]
[1760209372172,0.81250231,3815.0,3814.5,2.62156016]
[1760209372372,1.24470231,3815.0,3814.5,2.62156016]
[1760209372972,1.24470231,3815.0,3814.6,2.62148719]
[1760209373180,1.24470231,3815.0,3814.5,2.6215683]
[1760209373473,1.24470231,3815.0,3814.6,2.62149039]
[1760209373782,1.24470231,3815.0,3814.5,2.62156382]
[1760209373942,1.24470231,3815.0,3814.4,0.1304]
[1760209373943,0.4322,3814.9,3814.4,0.1304]
[1760209374147,0.81250231,3815.0,3814.4,2.0504]
[1760209374344,0.7864,3815.0,3814.5,0.05951575]
[1760209374549,0.656,3815.0,3814.9,2.62130068]
[1760209376255,0.656,3815.0,3814.9,2.78500068]
[1760209376450,0.656,3815.0,3814.9,2.75170068]
[1760209377898,0.656,3815.0,3814.9,4.70500068]
[1760209378184,0.656,3815.0,3814.9,5.44026145]
[1760209378485,0.656,3815.0,3814.9,6.07386145]
[1760209380199,0.656,3815.0,3814.9,6.04056145]
[1760209380400,0.656,3815.0,3814.9,1.92]
[1760209380895,0.656,3815.0,3814.9,4.54130068]
[1760209381601,0.656,3815.0,3814.9,4.57460068]
[1760209381766,0.656,3816.1,3815.2,0.6336]
[1760209381967,0.656,3816.1,3816.0,4.54054507]
[1760209382168,0.656,3816.1,3815.3,0.0333]
[1760209382372,0.656,3816.1,3815.6,2.62075303]
[1760209382589,0.4568,3816.0,3815.6,1.92]
[1760209382792,0.6928,3815.9,3814.5,0.0333]
[1760209383100,2.62095523,3815.5,3814.2,2.62178176]
[1760209383268,3.10386661,3815.4,3814.3,0.26550818]
[1760209383465,2.62103342,3815.3,3814.4,2.62164429]
[1760209383701,0.02610231,3815.2,3814.5,1.92]
[1760209384000,0.02610231,3815.2,3814.3,0.26550818]
[1760209384001,0.02610231,3815.2,3814.8,2.62136898]
[1760209384302,0.02610231,3815.6,3814.5,2.6215609]
[1760209384478,0.4568,3815.2,3814.5,1.92]
[1760209384684,0.02610231,3815.1,3814.4,1.92]
[1760209384884,0.48290231,3815.1,3814.4,0.29658412]
[1760209385078,0.02610231,3815.1,3814.8,2.62130673]
[1760209385294,0.4568,3815.5,3814.8,2.62130673]
[1760209385295,0.02610231,3815.3,3814.8,2.62130673]
[1760209386100,0.48290231,3815.3,3814.8,2.62130673]
[1760209386304,0.48290231,3815.3,3814.9,2.62128372]
[1760209386872,0.48290231,3815.7,3815.0,2.62117469]
[1760209387298,0.48290231,3815.7,3815.1,2.62115603]
[1760209387670,0.48290231,3815.7,3815.0,2.62122269]
[1760209387874,0.48290231,3815.7,3815.1,2.6211626]
[1760209388188,0.48290231,3815.7,3815.1,2.62115568]
[1760209388710,0.48290231,3815.7,3815.0,2.62122539]
[1760209389410,0.48290231,3815.7,3814.5,1.92]
[1760209389607,0.48290231,3815.7,3814.6,0.45750117]
[1760209389791,0.48290231,3815.7,3815.0,2.62117567]
[1760209389995,0.4568,3815.6,3814.8,1.92]
[1760209390179,0.48290231,3815.5,3814.8,1.92]
[1760209390377,3.07781042,3815.4,3814.5,2.62155744]
[1760209390708,3.07781042,3815.4,3814.1,1.92]
[1760209390709,0.1304,3815.0,3814.4,2.75203308]
[1760209390898,0.1304,3815.0,3814.4,0.1304]
[1760209390899,0.48290231,3814.9,3814.4,0.1304]
[1760209391088,0.4568,3814.8,3814.3,1.92]
[1760209391284,0.4568,3814.7,3814.2,0.1304]
[1760209391489,0.1304,3814.6,3814.0,2.62187297]
[1760209391906,0.1304,3814.6,3814.1,2.62185042]
[1760209392077,0.4568,3814.5,3814.1,2.62185042]
[1760209392607,0.48290231,3814.4,3813.9,0.1304]
[1760209392819,0.4568,3814.3,3813.9,0.1304]
[1760209392976,0.1304,3814.2,3813.6,0.002]
[1760209393181,0.1304,3814.0,3813.6,2.62418104]
[1760209393407,0.4568,3813.9,3813.6,2.62418104]
[1760209393608,0.1304,3814.0,3813.6,0.002]
[1760209393797,0.1304,3814.0,3813.8,2.62199983]
[1760209394320,0.1304,3814.0,3813.9,2.62198799]
[1760209394517,0.02610231,3814.3,3813.9,2.62198799]
[1760209394684,0.15650231,3814.3,3813.8,2.62204065]
[1760209394883,0.1304,3814.3,3813.8,2.62204065]
[1760209395253,0.236,3813.9,3813.6,1.922]
[1760209395393,0.236,3813.9,3813.6,0.002]
[1760209395394,0.4568,3813.8,3813.6,0.002]
[1760209395736,0.02610231,3813.7,3813.6,0.002]
[1760209395901,0.48290231,3813.7,3813.6,0.002]
[1760209396618,0.1304,3813.7,3813.6,0.002]
[1760209398718,0.48290231,3814.5,3813.8,2.62203862]
[1760209398895,0.1304,3813.9,3813.8,2.62203862]
[1760209399223,0.15650231,3814.5,3814.0,2.62185708]
[1760209399412,0.15650231,3814.5,3813.9,0.1304]
[1760209399614,0.15650231,3814.5,3814.1,2.62183069]
[1760209399925,0.15650231,3814.5,3813.9,0.1304]
[1760209400222,0.1304,3814.2,3813.6,0.1324]
[1760209400832,0.4568,3814.1,3813.6,0.1324]
[1760209401038,0.1304,3814.0,3813.6,0.002]
[1760209401443,0.15650231,3814.0,3813.6,0.002]
[1760209401590,0.1304,3814.0,3813.6,0.002]
[1760209401796,0.1304,3814.3,3813.6,0.1324]
[1760209402107,0.1304,3814.3,3814.1,2.62183728]
[1760209402293,0.1304,3814.3,3814.2,2.62178176]
[1760209402700,0.1304,3814.5,3814.4,2.62162861]
[1760209402906,0.1304,3814.5,3813.9,0.1304]
[1760209403100,0.1304,3814.5,3814.1,2.62183811]
[1760209403306,0.656,3814.4,3814.2,2.62176883]
[1760209403529,0.656,3814.4,3814.3,2.62171302]
[1760209403909,0.656,3814.4,3814.1,2.62178176]
[1760209404109,0.656,3814.4,3814.2,2.62176574]
[1760209404307,0.656,3814.4,3813.6,0.002]
[1760209404308,0.48290231,3814.3,3813.6,0.002]
[1760209404658,2.85812549,3813.7,3813.6,0.002]
[1760209404806,2.85812549,3813.7,3812.2,2.62315723]
[1760209404807,0.81011596,3813.7,3812.2,2.62315723]
[1760209405012,0.81011596,3813.7,3812.1,0.03334802]
[1760209405013,2.62241038,3813.3,3812.3,4.54307557]
[1760209405238,3.10539345,3813.2,3812.3,1.92]
[1760209405416,0.4568,3813.1,3812.3,1.92]
[1760209405608,0.02610231,3813.0,3812.2,1.92]
[1760209405803,0.4568,3813.1,3812.4,1.92]
[1760209406044,2.62247187,3813.2,3812.4,1.92]
[1760209406045,0.02610231,3813.0,3812.4,1.92]
[1760209406248,0.48290231,3813.0,3812.3,1.92]
[1760209406419,0.48290231,3813.0,3812.5,1.92]
[1760209406613,0.02610231,3813.0,3812.5,1.92]
[1760209406809,0.4568,3812.9,3812.5,2.62293182]
[1760209407025,0.4568,3812.8,3812.3,1.92]
[1760209407209,0.4568,3813.2,3812.5,2.62295081]
[1760209407414,0.4568,3813.2,3812.3,2.62303722]
[1760209407415,0.4568,3813.1,3812.3,1.92]
[1760209407609,0.48290231,3813.0,3812.1,0.00711576]
[1760209407827,0.48290231,3813.0,3812.5,1.92]
[1760209408026,0.4568,3812.9,3812.5,1.92]
[1760209408228,0.02610231,3813.0,3812.4,1.92]
[1760209408412,0.4568,3812.8,3812.1,0.00711576]
[1760209408744,0.4568,3812.8,3812.1,1.92711576]
[1760209409037,0.48290231,3812.7,3812.1,2.63031191]
[1760209409344,0.4568,3812.6,3812.1,0.00711576]
[1760209409544,0.02610231,3812.5,3812.1,0.00711576]
[1760209409718,0.4447,3812.4,3812.1,0.00711576]
[1760209410040,0.47080231,3812.3,3812.1,0.00711576]
[1760209410219,0.02610231,3812.3,3812.1,0.00711576]
[1760209410422,0.4447,3812.2,3812.1,0.00711576]
[1760209412918,0.7775808,3812.2,3812.1,0.00711576]
[1760209413248,0.47080231,3812.2,3812.1,0.00711576]
[1760209413551,0.4447,3812.2,3812.1,0.00711576]
[1760209413748,3.06785723,3812.2,3812.1,0.00711576]
[1760209413992,0.4447,3812.2,3809.3,4.96513557]
[1760209414138,0.47080231,3812.1,3811.0,2.62393042]
[1760209414337,0.47080231,3812.1,3811.0,2.62398144]
[1760209414338,0.1304,3811.3,3811.0,2.62398144]
[1760209414518,0.656,3811.2,3811.1,2.62391435]
[1760209414714,0.656,3811.2,3810.9,2.62398526]
[1760209415036,0.656,3811.2,3811.1,2.62391435]
[1760209415242,0.656,3811.2,3811.0,0.02623983]
[1760209415422,0.656,3811.2,3811.0,2.62391807]
[1760209415751,0.656,3811.2,3810.9,0.02624052]
[1760209415932,0.4447,3811.1,3810.7,0.1312]
[1760209416132,0.4447,3811.1,3810.8,2.62412001]
[1760209416335,0.656,3811.2,3810.7,0.1312]
[1760209416649,0.4447,3811.0,3810.7,0.1312]
[1760209416842,0.4447,3811.0,3810.7,2.0512]
[1760209417036,0.4447,3810.9,3810.7,2.0512]
[1760209417242,0.4447,3810.8,3808.6,0.018565]
[1760209417451,0.5759,3810.8,3810.2,0.1312]
[1760209417839,0.5759,3810.8,3810.3,1.92]
[1760209418025,0.4447,3810.7,3810.3,1.92]
[1760209418226,1.1007,3810.6,3808.0,2.3400063]
[1760209418443,1.1007,3810.6,3809.3,0.002]
[1760209418444,0.2216,3810.5,3809.3,0.002]
[1760209418665,0.30494254,3810.4,3809.3,0.002]
[1760209418852,0.30494254,3810.4,3809.3,2.62709628]
[1760209419025,0.4447,3810.3,3809.4,2.62507942]
[1760209419227,0.47080231,3810.2,3809.4,2.62507942]
[1760209419423,0.02610231,3810.2,3809.3,0.002]
[1760209419665,0.4447,3810.1,3809.3,0.002]
[1760209419825,2.62480236,3809.9,3809.3,0.002]
[1760209420025,2.65091694,3809.8,3809.3,0.002]
[1760209420263,0.5847,3809.7,3808.6,0.018565]
[1760209420445,0.6336,3809.0,3805.9,0.0205]
[1760209420640,2.05186006,3808.9,3806.3,0.0205]
[1760209420865,0.47080231,3808.9,3807.4,1.92]
[1760209421042,0.47080231,3808.9,3806.8,2.62687821]
[1760209421043,2.62577113,3808.5,3806.8,2.62687821]
[1760209421243,1.12680231,3808.4,3806.2,0.0205]
[1760209421502,2.62584954,3808.3,3806.1,2.62735798]
[1760209421657,2.62584954,3808.3,3805.3,2.62788576]
[1760209421658,19.62397753,3808.1,3805.1,0.81065051]
[1760209421856,2.62646444,3807.4,3805.9,2.62748217]
[1760209422060,2.62646444,3807.4,3804.3,2.62858687]
[1760209422061,4.98771,3807.2,3802.8,1.39152256]
[1760209422368,4.98771,3807.2,3803.5,0.1372328]
[1760209422369,0.69240231,3807.1,3803.5,0.1372328]
[1760209422569,0.69240231,3807.1,3804.0,22.2527893]
[1760209422570,0.4447,3807.0,3804.0,22.2527893]
[1760209422756,0.4447,3807.0,3804.1,1.9405]
[1760209423080,0.4447,3806.9,3804.9,2.62815135]
[1760209423237,0.47080231,3806.8,3803.9,0.0205]
[1760209423438,0.47080231,3806.8,3804.1,2.57874267]
[1760209423766,0.4664,3806.7,3804.3,2.62860447]
[1760209423941,0.49250231,3806.6,3804.4,0.0205]
[1760209424276,0.688,3807.1,3805.8,1.92]
[1760209424436,0.4664,3806.6,3805.3,0.6336]
[1760209424640,0.4664,3806.6,3805.8,2.62756678]
[1760209424937,0.4664,3806.6,3805.9,2.62749282]
[1760209425149,0.02610231,3807.0,3805.0,1.92]
[1760209425353,0.4664,3806.9,3805.8,2.62752148]
[1760209425553,0.02610231,3806.8,3804.5,2.62846628]
[1760209425756,0.4664,3806.9,3804.7,2.62832812]
[1760209425941,0.4664,3806.9,3806.6,2.62697925]
[1760209426138,0.2335,3807.4,3806.2,2.62722479]
[1760209426488,0.2335,3807.4,3806.3,0.01329087]
[1760209426489,0.49923166,3807.3,3806.3,0.01329087]
[1760209426643,0.49923166,3807.3,3806.6,2.62696446]
[1760209426837,0.03283166,3807.3,3806.3,2.62722328]
[1760209427074,0.4664,3807.2,3806.2,2.62727813]
[1760209427262,0.49923339,3807.1,3806.3,2.62722028]
[1760209427462,0.49923339,3807.1,3806.3,1.92]
[1760209427668,0.49923339,3807.1,3806.0,4.54736424]
[1760209427858,0.49923339,3807.1,3806.2,1.92]
[1760209428178,0.49923339,3807.1,3806.5,1.92]
[1760209428384,0.49923339,3807.1,3806.1,2.0512]
[1760209428385,0.1312,3806.7,3806.1,2.0512]
[1760209428549,0.1312,3806.7,3806.3,1.92]
[1760209428876,0.1312,3806.7,3806.1,0.1312]
[1760209429462,0.1312,3806.7,3806.3,1.92]
[1760209429644,0.1312,3806.7,3806.1,0.1312]
[1760209429645,0.4664,3807.2,3806.5,1.92]
[1760209429845,0.03283339,3807.1,3806.5,2.62706908]
[1760209430041,0.03283339,3807.1,3806.1,1.92]
[1760209430275,0.03283339,3807.1,3806.1,0.25536]
[1760209430480,0.03283339,3807.1,3806.6,2.62694729]
[1760209430779,0.2335,3807.4,3806.4,0.01328983]
[1760209430981,0.4664,3807.5,3806.3,0.6336]
[1760209431277,0.03282563,3808.0,3805.9,1.92]
[1760209431278,0.2335,3807.8,3806.8,2.62683639]
[1760209431483,0.2335,3807.8,3806.6,1.92]
[1760209431484,0.4664,3807.7,3806.6,1.92]
[1760209431688,0.49922907,3807.6,3806.0,0.6336]
[1760209431871,0.4664,3807.5,3806.8,1.92]
[1760209432073,0.4992308,3807.4,3806.8,2.62685239]
[1760209432258,0.4992308,3807.4,3806.1,0.25536]
[1760209432459,0.4992308,3807.4,3806.4,2.62708643]
[1760209432694,0.4664,3807.3,3806.5,2.62706316]
[1760209432905,0.03283252,3807.2,3806.5,2.62706316]
[1760209433106,0.49923252,3807.2,3806.5,1.92]
[1760209433296,0.03283252,3807.2,3806.5,1.92]
[1760209433614,0.4664,3807.1,3806.7,2.62693169]
[1760209433782,0.2335,3807.8,3805.5,0.6336]
[1760209433783,0.03283425,3807.0,3805.5,0.6336]
[1760209433990,0.49922994,3807.5,3806.9,2.62680407]
[1760209434311,0.49922994,3807.5,3805.8,0.6336]
[1760209434477,0.49922994,3807.5,3806.2,2.5536]
[1760209434671,0.49922994,3807.5,3807.2,2.62657699]
[1760209434907,0.4664,3807.9,3807.0,0.01328085]
[1760209435092,0.03282735,3807.8,3807.4,2.6264548]
[1760209435271,0.49922735,3807.8,3807.2,0.01327672]
[1760209435605,0.4664,3808.3,3807.7,2.62619396]
[1760209435807,0.4664,3808.3,3806.8,2.5536]
[1760209435808,0.0328239,3808.2,3806.8,2.5536]
[1760209436106,0.656,3808.4,3808.3,2.62584355]
[1760209436311,0.656,3808.4,3806.9,0.53133386]
[1760209436312,1.1224,3808.4,3806.9,0.51805472]
[1760209436608,2.65866722,3808.3,3807.2,2.62659684]
[1760209436809,0.4664,3808.2,3807.2,2.62653863]
[1760209437009,0.03282476,3808.1,3807.2,2.62653863]
[1760209437307,0.4664,3808.0,3807.1,2.62666232]
[1760209437485,0.03282649,3807.9,3807.5,2.62638318]
[1760209437686,0.73272649,3807.9,3807.3,2.62649957]
[1760209437899,0.03282649,3807.9,3807.5,2.62635749]
[1760209438216,0.03282649,3807.9,3806.9,2.62680921]
[1760209438217,0.4664,3807.8,3806.5,0.002]
[1760209438386,0.03282821,3807.7,3806.7,1.92]
[1760209438580,0.03282821,3807.7,3807.1,2.62660762]
[1760209438777,0.03282821,3807.7,3807.2,2.62659001]
[1760209439184,0.03282821,3807.7,3807.5,2.62634658]
[1760209439411,0.2335,3807.9,3807.6,2.62631714]
[1760209439622,0.03282476,3808.1,3807.9,2.6261129]
[1760209439821,0.1312,3808.1,3807.5,2.62639527]
[1760209440109,0.5859,3808.1,3807.6,2.62626095]
[1760209440309,2.62513537,3809.4,3807.0,2.6267291]
[1760209440310,0.2196,3807.7,3807.0,2.6267291]
[1760209440513,0.4547,3807.6,3806.6,2.62701623]
[1760209440810,0.48752994,3807.5,3806.6,2.627013]
[1760209441021,0.48752994,3807.5,3806.5,0.002]
[1760209441022,0.78805107,3807.4,3806.5,0.01528673]
[1760209441204,0.03283166,3807.3,3806.9,2.62674061]
[1760209441404,0.48753166,3807.3,3806.9,2.62674061]
[1760209441607,0.4547,3807.2,3806.9,2.62674061]
[1760209441823,0.4547,3807.5,3806.7,2.64017652]
[1760209442025,0.0328308,3807.4,3806.5,0.002]
[1760209442227,0.03282476,3808.1,3806.6,0.01328775]
[1760209442383,0.2196,3807.9,3807.5,2.62633911]
[1760209442579,0.03282304,3808.3,3807.6,0.01327395]
[1760209442807,0.03282476,3808.1,3806.8,0.6336]
[1760209443003,0.03282476,3808.1,3806.8,1.92]
[1760209443202,0.03282476,3808.1,3807.8,2.62613076]
[1760209443389,0.03282476,3808.1,3807.6,2.6263147]
[1760209443591,0.48752476,3808.1,3807.6,2.62627169]
[1760209443806,0.4547,3808.0,3807.5,2.62638395]
[1760209444017,0.03282476,3808.1,3806.9,0.51805472]
[1760209444018,0.6743,3807.9,3807.6,2.62631993]
[1760209444792,0.6743,3807.9,3807.7,2.62624204]
[1760209444992,0.6743,3807.9,3806.9,0.51805472]
[1760209445192,0.6743,3807.9,3805.9,0.51813065]
[1760209445414,0.6743,3807.9,3807.6,2.62629327]
[1760209445719,0.48752735,3807.8,3806.5,2.18491572]
[1760209445887,0.48752735,3807.8,3806.8,2.62685605]
[1760209446084,0.4547,3807.7,3806.6,2.62695483]
[1760209446285,0.03282735,3807.8,3806.6,2.62695483]
[1760209446286,2.62641096,3807.5,3806.6,2.62695483]
[1760209446484,0.7989248,3807.4,3806.6,2.62695483]
[1760209446697,0.4547,3807.3,3806.5,2.62907279]
[1760209446893,0.03283252,3807.2,3806.6,2.62701623]
[1760209447094,0.03283252,3807.2,3806.5,1.922]
[1760209447396,0.03283252,3807.2,3806.7,2.626934]
[1760209447788,0.4547,3807.1,3806.9,2.62680056]
[1760209448122,0.4547,3807.0,3806.5,0.002]
[1760209448594,0.03283511,3806.9,3806.5,0.002]
[1760209448795,0.31142632,3806.8,3806.5,0.002]
[1760209449118,0.03283684,3806.7,3806.5,0.002]
[1760209449322,0.48753684,3806.7,3806.5,0.002]
[1760209449520,0.03282735,3807.8,3806.5,0.002]
[1760209449721,0.4547,3807.7,3806.5,0.002]
[1760209449925,0.03282907,3807.6,3806.5,0.002]
[1760209450092,0.03282907,3807.6,3806.8,2.62681299]
[1760209450287,0.1312,3806.9,3806.8,2.62686509]
[1760209450524,0.1312,3806.9,3806.8,4.54686509]
[1760209450828,0.16402907,3807.6,3807.5,2.62639527]
[1760209451030,0.1312,3807.6,3807.4,2.62645747]
[1760209451405,0.1312,3807.6,3806.8,2.0512]
[1760209451406,0.4547,3807.5,3806.8,2.0512]
[1760209451615,0.4547,3807.5,3807.3,2.62647024]
[1760209451821,0.1312,3807.6,3806.8,2.25652]
[1760209452197,0.1312,3807.6,3807.5,2.62639527]
[1760209452728,0.5859,3807.6,3807.3,2.62646691]
[1760209452934,0.48752994,3807.5,3807.0,2.62672894]
[1760209453141,0.1312,3807.4,3807.2,2.62659592]
[1760209453342,0.4547,3807.3,3807.2,2.62659592]
[1760209453643,0.25242649,3807.9,3807.3,2.62653323]
[1760209453800,0.1312,3807.7,3807.6,2.62630643]
[1760209454219,0.657,3808.2,3808.0,2.62600577]
[1760209454410,0.1312,3808.1,3808.0,2.62600577]
[1760209455535,0.1312,3808.1,3807.8,2.62613347]
[1760209455828,0.4547,3808.0,3807.5,2.62636835]
[1760209456127,0.4547,3808.0,3807.8,2.62616329]
[1760209456328,0.16402476,3808.1,3807.8,2.62616329]
[1760209456528,0.16402476,3808.1,3807.4,0.1312]
[1760209456830,0.03282476,3808.1,3806.7,0.6336]
[1760209457132,0.03282476,3808.1,3807.3,2.62653312]
[1760209457133,0.1312,3807.8,3807.3,2.62653312]
[1760209457319,0.6743,3807.7,3807.2,2.75779512]
[1760209457519,0.03282907,3807.6,3807.3,2.62652597]
[1760209458229,0.03282907,3807.6,3807.2,2.75778513]
[1760209458408,0.4547,3807.5,3806.5,0.002]
[1760209458617,0.61872994,3807.5,3807.2,2.62653434]
[1760209458802,0.61872994,3807.5,3806.9,0.1312]
[1760209459006,0.61872994,3807.5,3807.4,2.62646425]
[1760209459007,0.1312,3807.5,3807.4,2.62646425]
[1760209459536,0.03282476,3808.1,3807.5,2.62633591]
[1760209459537,0.1312,3807.9,3807.5,2.62633591]
[1760209459700,0.1312,3807.9,3807.2,0.1312]
[1760209459901,0.1312,3807.9,3807.8,2.62618835]
[1760209460432,0.1312,3807.9,3807.7,2.6262411]
[1760209461208,0.4547,3807.8,3807.4,2.62641494]
[1760209461408,0.4547,3807.8,3807.5,2.62633707]
[1760209461727,0.1312,3807.9,3807.6,2.62631683]